bitfinex/quotes_ETHUSD_20240925
["timestamp","ask_amount","ask_price","bid_price","bid_amount"]
[1727259647160,0.06677803,2631.6,2631.5,0.0378971]
[1727259647370,3.7998,2631.8,2631.5,0.0378971]
[1727259647662,0.06677803,2631.6,2631.5,0.0378971]
[1727259648163,3.79955,2631.9,2631.5,1.33617969]
[1727259648323,0.06677803,2631.6,2631.5,1.33617969]
[1727259648531,3.79955,2631.9,2631.5,1.33617969]
[1727259648839,0.06663442,2631.6,2631.5,1.33617969]
[1727259649041,3.79955,2631.9,2631.5,1.33617969]
[1727259649235,0.06663442,2631.6,2631.5,1.33617969]
[1727259649759,3.79955,2631.9,2631.5,1.33617969]
[1727259649930,0.06663442,2631.6,2631.5,1.33617969]
[1727259650128,3.79955,2631.9,2631.5,1.33617969]
[1727259650483,3.79955,2631.9,2631.5,0.0378971]
[1727259650862,3.79969,2631.8,2631.5,0.0378971]
[1727259651292,3.79982,2631.7,2631.5,0.0378971]
[1727259652084,3.79996,2631.6,2631.5,0.0378971]
[1727259653785,4.10092,2631.7,2631.5,0.0378971]
[1727259654082,7.59975,2631.7,2631.5,0.0378971]
[1727259654785,3.79996,2631.6,2631.5,0.0378971]
[1727259656487,3.7999,2631.7,2631.5,0.0378971]
[1727259660401,7.59964,2631.8,2631.5,0.0378971]
[1727259660964,3.79985,2631.7,2631.5,0.0378971]
[1727259662609,0.3391,2632.0,2631.5,0.0378971]
[1727259662907,3.7996,2631.9,2631.5,0.0378971]
[1727259663121,7.59922,2631.9,2631.5,0.0378971]
[1727259663318,3.7996,2631.9,2631.5,0.0378971]
[1727259664174,7.59921,2631.9,2631.5,0.0378971]
[1727259667080,3.79969,2631.8,2631.5,0.0378971]
[1727259669215,3.79969,2631.8,2631.5,0.8596971]
[1727259669413,3.7996,2631.9,2631.5,4.6597971]
[1727259669615,7.59924,2631.9,2631.5,0.8596971]
[1727259669821,3.7996,2631.9,2631.5,0.8596971]
[1727259670185,3.79971,2631.8,2631.5,0.8596971]
[1727259671309,3.79955,2631.9,2631.5,0.8596971]
[1727259672026,3.79968,2631.8,2631.5,0.8596971]
[1727259673695,3.79973,2631.8,2631.5,0.0378971]
[1727259675234,3.79996,2631.6,2631.5,0.0378971]
[1727259675397,5.39934259,2631.6,2631.5,0.0378971]
[1727259677627,4.10106,2631.6,2631.5,0.0378971]
[1727259678437,3.79985,2631.7,2631.5,0.0378971]
[1727259678598,3.79963,2631.9,2631.6,0.7534]
[1727259678794,3.79979,2631.8,2631.6,0.7534]
[1727259679119,3.86555773,2631.8,2631.6,0.7534]
[1727259679309,0.06576773,2631.8,2631.6,0.7534]
[1727259679637,3.79982,2631.7,2631.6,0.7534]
[1727259679800,3.86566057,2631.7,2631.6,0.7534]
[1727259680002,0.06584057,2631.7,2631.6,0.7534]
[1727259680338,3.79963,2631.9,2631.6,0.7534]
[1727259680543,0.0660954,2631.7,2631.6,0.7534]
[1727259680698,3.79963,2631.9,2631.6,0.7534]
[1727259680899,0.06597922,2631.7,2631.6,0.7534]
[1727259681211,0.06609213,2631.7,2631.6,0.7534]
[1727259681409,3.79977,2631.8,2631.6,0.7534]
[1727259681620,0.06609213,2631.7,2631.6,0.7534]
[1727259681795,3.79977,2631.8,2631.6,0.7534]
[1727259682135,0.06618463,2631.7,2631.6,0.7534]
[1727259682520,3.79977,2631.8,2631.6,0.7534]
[1727259682845,3.86601118,2631.7,2631.5,0.0378971]
[1727259683017,3.79996,2631.6,2631.5,0.0378971]
[1727259683203,3.86608288,2631.6,2631.5,0.0378971]
[1727259686515,4.16718288,2631.6,2631.5,0.0378971]
[1727259692426,9.16067631,2631.6,2631.5,0.0378971]
[1727259693025,7.16718288,2631.6,2631.5,0.0378971]
[1727259694023,6.86608288,2631.6,2631.5,0.0378971]
[1727259696452,3.86608288,2631.6,2631.5,0.0378971]
[1727259710884,4.16718288,2631.6,2631.5,0.0378971]
[1727259711092,9.1604818,2631.6,2631.5,0.0378971]
[1727259711241,9.16025066,2631.6,2631.5,0.0378971]
[1727259711441,7.16718288,2631.6,2631.5,0.0378971]
[1727259711673,9.16014509,2631.6,2631.5,0.0378971]
[1727259712282,7.16718288,2631.6,2631.5,0.0378971]
[1727259712468,9.16013516,2631.6,2631.5,0.0378971]
[1727259712640,7.16718288,2631.6,2631.5,0.0378971]
[1727259712846,11.97582789,2631.6,2631.5,0.0378971]
[1727259713151,9.98285727,2631.6,2631.5,0.0378971]
[1727259713859,11.97583385,2631.6,2631.5,0.0378971]
[1727259714486,11.97571456,2631.6,2631.5,0.0378971]
[1727259714652,9.98285727,2631.6,2631.5,0.0378971]
[1727259715360,7.16718288,2631.6,2631.5,0.0378971]
[1727259715566,9.1601059,2631.6,2631.5,0.0378971]
[1727259715757,9.98285727,2631.6,2631.5,0.0378971]
[1727259717391,9.98285727,2631.6,2631.5,0.03693377]
[1727259720391,7.16718288,2631.6,2631.5,0.03693377]
[1727259720557,9.98285727,2631.6,2631.5,0.03693377]
[1727259722386,8.46784631,2631.6,2631.5,0.03693377]
[1727259728668,10.86001746,2631.6,2631.5,0.03693377]
[1727259729108,8.46784631,2631.6,2631.5,0.03693377]
[1727259729506,10.86001746,2631.6,2631.5,0.03693377]
[1727259733187,8.46784631,2631.6,2631.5,0.03693377]
[1727259733402,10.86142524,2631.6,2631.5,0.03693377]
[1727259738120,8.46784631,2631.6,2631.5,0.03693377]
[1727259738331,10.86126609,2631.6,2631.5,0.03693377]
[1727259740531,8.46784631,2631.6,2631.5,0.03693377]
[1727259751128,6.25992622,2631.6,2631.5,0.03693377]
[1727259751333,3.86608288,2631.6,2631.5,0.80433377]
[1727259751644,5.86136938,2631.6,2631.5,0.80433377]
[1727259751848,3.86608288,2631.6,2631.5,0.80433377]
[1727259752504,6.86608288,2631.6,2631.5,0.80433377]
[1727259754638,9.26064955,2631.6,2631.5,0.03693377]
[1727259756614,6.86608288,2631.6,2631.5,0.03693377]
[1727259770692,9.26299754,2631.6,2631.5,0.03693377]
[1727259770887,9.26297426,2631.6,2631.5,0.03693377]
[1727259771792,5.86320387,2631.6,2631.5,0.80523377]
[1727259772104,5.86319297,2631.6,2631.5,0.80523377]
[1727259772390,3.86608288,2631.6,2631.5,0.80523377]
[1727259780670,3.86608288,2631.6,2631.5,0.03693377]
[1727259781090,6.86608288,2631.6,2631.5,0.03693377]
[1727259790191,0.06612288,2631.6,2631.5,0.84363377]
[1727259790380,0.06612288,2631.6,2631.5,4.7197446]
[1727259790572,0.038,2632.0,2631.7,3.79975]
[1727259790777,0.038,2632.0,2631.9,0.8067]
[1727259791122,0.08538592,2632.0,2631.9,0.8067]
[1727259791411,0.08538592,2632.0,2631.9,0.55129107]
[1727259793776,3.88477592,2632.0,2631.9,0.55129107]
[1727259794000,0.08538592,2632.0,2631.9,0.55129107]
[1727259796280,0.08538592,2632.0,2631.9,4.35082107]
[1727259796482,0.08538592,2632.0,2631.9,7.79223587]
[1727259796808,3.79819,2632.9,2632.4,3.79878]
[1727259797005,3.79819,2632.9,2632.6,0.7717]
[1727259797006,7.59639,2632.9,2632.6,0.7717]
[1727259797271,3.79819,2632.9,2632.6,0.7717]
[1727259797702,3.79818,2632.9,2632.6,0.7717]
[1727259798111,2.39014487,2633.8,2633.0,0.7717]
[1727259798313,3.79774,2633.2,2633.0,0.7717]
[1727259798707,3.7978,2633.1,2633.0,0.7717]
[1727259798913,3.79832,2632.8,2632.4,0.7717]
[1727259799514,3.79848,2632.7,2632.4,0.7717]
[1727259800238,3.84475865,2632.6,2632.4,0.7717]
[1727259800734,3.79867,2632.5,2632.4,0.7717]
[1727259800913,0.0460804,2632.5,2632.4,0.7717]
[1727259801123,3.79829,2632.8,2632.4,0.7717]
[1727259801435,0.04629398,2632.7,2632.4,0.7717]
[1727259801924,0.04615993,2632.6,2632.4,0.7717]
[1727259802222,3.79829,2632.8,2632.4,0.7717]
[1727259802429,0.04609168,2632.5,2632.4,0.7717]
[1727259802593,3.79829,2632.8,2632.4,0.7717]
[1727259802795,0.04609168,2632.5,2632.4,0.7717]
[1727259803031,3.79829,2632.8,2632.4,0.7717]
[1727259803508,0.04622818,2632.7,2632.4,0.7717]
[1727259803693,3.79829,2632.8,2632.4,0.7717]
[1727259804026,0.04622818,2632.7,2632.4,0.7717]
[1727259804528,0.04615993,2632.6,2632.4,0.7717]
[1727259804704,3.79829,2632.8,2632.4,0.7717]
[1727259804910,0.04622818,2632.7,2632.4,0.7717]
[1727259805095,3.79829,2632.8,2632.4,0.7717]
[1727259805294,0.04622818,2632.7,2632.4,0.7717]
[1727259805523,3.79829,2632.8,2632.4,0.7717]
[1727259805693,0.04622818,2632.7,2632.4,3.7988]
[1727259805899,7.59631,2632.9,2632.5,0.7629]
[1727259806140,0.04629642,2632.8,2632.5,0.7629]
[1727259806713,3.84456642,2632.8,2632.5,0.7629]
[1727259807932,3.79839,2632.7,2632.5,0.7629]
[1727259808237,0.04615993,2632.6,2632.5,0.7629]
[1727259809024,3.84467993,2632.6,2632.5,0.7629]
[1727259811036,0.04615993,2632.6,2632.5,0.7629]
[1727259811736,0.04670497,2632.6,2632.5,0.7629]
[1727259811941,7.59639,2632.9,2632.5,0.7629]
[1727259811942,3.79818,2632.9,2632.5,0.7629]
[1727259812129,0.04559124,2632.8,2632.5,0.7629]
[1727259813550,0.04559124,2632.8,2632.5,4.56157]
[1727259813758,0.04559124,2632.8,2632.5,0.7629]
[1727259816753,3.79844,2632.7,2632.5,0.7629]
[1727259816956,0.04545096,2632.6,2632.5,0.7629]
[1727259822151,3.84397096,2632.6,2632.5,0.7629]
[1727259822854,0.04545096,2632.6,2632.5,0.7629]
[1727259823353,3.79831,2632.8,2632.5,0.7629]
[1727259823554,0.04558222,2632.7,2632.5,0.7629]
[1727259823757,3.79831,2632.8,2632.5,0.7629]
[1727259823936,0.04558222,2632.7,2632.5,0.7629]
[1727259824140,3.79831,2632.8,2632.5,0.7629]
[1727259824343,0.04558222,2632.7,2632.5,0.7629]
[1727259824571,3.79831,2632.8,2632.5,0.7629]
[1727259824751,0.04558222,2632.7,2632.5,0.7629]
[1727259824955,3.79852,2632.6,2632.5,0.7629]
[1727259825156,3.84417505,2632.6,2632.5,0.7629]
[1727259825646,3.79878,2632.5,2632.2,0.7998]
[1727259825876,3.79882,2632.4,2632.2,0.7998]
[1727259826083,3.84443309,2632.4,2632.2,0.7998]
[1727259826577,0.04561309,2632.4,2632.2,0.7998]
[1727259826777,3.79867,2632.5,2632.2,0.7998]
[1727259827356,7.59691,2632.7,2632.2,0.7998]
[1727259827586,7.5969,2632.7,2632.2,6.61453036]
[1727259827890,3.84411027,2632.6,2632.3,0.8173]
[1727259830391,3.84411027,2632.6,2632.3,2.116083]
[1727259832891,0.04558027,2632.6,2632.5,2.061783]
[1727259833254,3.79816,2632.9,2632.5,2.061783]
[1727259833589,3.79791,2633.1,2632.8,1.298783]
[1727259833748,3.79791,2633.1,2632.9,0.8131]
[1727259833950,3.79794,2633.0,2632.9,0.8131]
[1727259834253,3.79794,2633.0,2632.6,0.8131]
[1727259834780,7.59579,2633.1,2632.6,4.61162]
[1727259835287,3.79788,2633.1,2632.6,4.61162]
[1727259835852,7.59578,2633.1,2632.6,4.61162]
[1727259836654,0.04528625,2633.0,2632.6,4.61162]
[1727259838055,0.04528625,2633.0,2632.6,7.42522401]
[1727259838679,3.84331625,2633.0,2632.6,7.42519401]
[1727259839805,3.79809,2632.9,2632.6,0.8131]
[1727259839995,0.04514975,2632.8,2632.6,0.8131]
[1727259840714,3.84344975,2632.8,2632.6,0.8131]
[1727259840872,3.79838,2632.7,2632.3,5.17641615]
[1727259841076,3.79838,2632.7,2632.4,1.21785238]
[1727259841296,0.04506585,2632.6,2632.5,0.39095238]
[1727259843016,3.79838,2632.7,2632.5,0.39095238]
[1727259843216,3.79838,2632.7,2632.5,0.39141342]
[1727259843217,0.04503625,2632.6,2632.5,0.39141342]
[1727259843400,0.04503625,2632.6,2632.4,0.8269]
[1727259843597,0.04503625,2632.6,2632.5,0.39140292]
[1727259843796,3.79825,2632.8,2632.5,0.39140292]
[1727259843978,0.04569744,2632.7,2632.6,0.39140292]
[1727259844178,3.79825,2632.8,2632.6,0.39140292]
[1727259844373,0.04569744,2632.7,2632.4,4.62569]
[1727259844691,3.79825,2632.8,2632.5,0.3914291]
[1727259844895,0.04483354,2632.6,2632.4,4.62569]
[1727259845093,3.79825,2632.8,2632.5,0.39141709]
[1727259845410,3.79825,2632.8,2632.4,4.62569]
[1727259845411,3.79825,2632.8,2632.6,0.39141709]
[1727259845612,3.79825,2632.8,2632.4,4.62569]
[1727259845812,3.79825,2632.8,2632.5,0.39141534]
[1727259846013,3.79825,2632.8,2632.6,0.39141534]
[1727259846215,3.79825,2632.8,2632.4,4.62569]
[1727259846517,3.79825,2632.8,2632.5,0.39142243]
[1727259847279,3.79825,2632.8,2632.6,0.39142873]
[1727259847525,3.79825,2632.8,2632.4,4.62569]
[1727259847686,3.79825,2632.8,2632.5,0.39142065]
[1727259847890,3.79825,2632.8,2632.6,0.39142065]
[1727259848091,3.79825,2632.8,2632.4,4.62569]
[1727259848314,3.79825,2632.8,2632.5,0.39140225]
[1727259848315,0.04569744,2632.7,2632.5,0.39140225]
[1727259848618,3.79825,2632.8,2632.6,0.39140225]
[1727259848921,0.044825,2632.7,2632.4,4.62569]
[1727259849210,3.79825,2632.8,2632.5,0.39140107]
[1727259849519,0.04575664,2632.7,2632.6,0.39140107]
[1727259849715,3.84413664,2632.7,2632.6,0.39140107]
[1727259850018,3.843205,2632.7,2632.6,0.39140107]
[1727259850318,3.843205,2632.7,2632.4,0.8269]
[1727259850524,0.044825,2632.7,2632.6,0.39142751]
[1727259850823,3.79825,2632.8,2632.6,0.39142751]
[1727259851004,0.04575664,2632.7,2632.6,0.39142751]
[1727259851186,3.79825,2632.8,2632.4,0.8269]
[1727259851397,0.04575664,2632.7,2632.4,0.8269]
[1727259851716,3.79825,2632.8,2632.5,0.39138265]
[1727259852013,3.79825,2632.8,2632.6,0.39132709]
[1727259852319,3.79825,2632.8,2632.4,0.8269]
[1727259852320,0.044825,2632.7,2632.4,0.8269]
[1727259852485,0.044825,2632.7,2632.5,0.39135279]
[1727259852682,3.79839,2632.7,2632.6,0.39135279]
[1727259854510,3.79825,2632.8,2632.6,0.39135279]
[1727259854805,3.79825,2632.8,2632.4,0.8269]
[1727259855013,3.79825,2632.8,2632.5,0.39132711]
[1727259855214,3.79825,2632.8,2632.6,0.39132711]
[1727259855517,3.79825,2632.8,2632.7,0.39132711]
[1727259856076,3.79825,2632.8,2632.4,4.62568]
[1727259856981,3.79825,2632.8,2632.5,0.39132935]
[1727259857281,3.79825,2632.8,2632.6,0.39132935]
[1727259857480,3.79825,2632.8,2632.7,0.39132935]
[1727259857683,3.7981,2632.9,2632.5,3.79864]
[1727259857910,3.7981,2632.9,2632.4,4.62568]
[1727259857911,3.7981,2632.9,2632.6,0.39132867]
[1727259858220,3.7981,2632.9,2632.4,5.9244346]
[1727259858424,3.7981,2632.9,2632.5,0.39134468]
[1727259858591,3.7981,2632.9,2632.4,5.9244346]
[1727259858592,3.7981,2632.9,2632.6,0.39134468]
[1727259858798,3.7981,2632.9,2632.7,0.39134468]
[1727259859014,3.7981,2632.9,2632.4,5.9244346]
[1727259859303,3.7981,2632.9,2632.5,4.18995537]
[1727259859617,3.7981,2632.9,2632.5,3.79864]
[1727259859829,3.79815,2632.9,2632.5,3.79864]
[1727259860630,3.79807,2633.0,2632.7,0.8066]
[1727259860989,3.7978,2633.1,2632.7,0.8066]
[1727259861692,3.79777,2633.2,2632.7,0.8066]
[1727259861693,3.79777,2633.2,2633.0,0.8301]
[1727259864523,0.04583157,2633.1,2633.0,0.8301]
[1727259865221,3.79752,2633.3,2633.0,0.8301]
[1727259865397,0.04571876,2633.1,2633.0,0.8301]
[1727259865590,3.79752,2633.3,2633.0,0.8301]
[1727259865834,0.0458598,2633.1,2633.0,0.8301]
[1727259865992,3.79752,2633.3,2633.0,0.8301]
[1727259866194,0.04571876,2633.1,2633.0,0.8301]
[1727259866395,3.79752,2633.3,2633.0,0.8301]
[1727259866699,3.79818,2632.9,2632.4,4.59605]
[1727259867122,0.04574718,2632.8,2632.4,4.59605]
[1727259867291,3.79818,2632.9,2632.4,4.59605]
[1727259867492,0.04567894,2632.7,2632.4,4.59605]
[1727259867731,3.84408718,2632.8,2632.4,0.71216368]
[1727259867935,0.04561069,2632.6,2632.4,0.71216368]
[1727259868095,4.47794,2632.8,2632.4,0.71216368]
[1727259868300,8.27628,2632.8,2632.4,0.71216368]
[1727259868514,3.79871,2632.5,2632.2,1.37777262]
[1727259868727,3.79853,2632.6,2632.1,11.18915]
[1727259868929,0.04549775,2632.5,2632.1,11.18915]
[1727259869324,0.04549775,2632.5,2632.1,3.79915]
[1727259869537,0.04549775,2632.5,2632.1,5.17707288]
[1727259869708,0.04549775,2632.5,2632.1,5.17706916]
[1727259870137,0.04549775,2632.5,2632.1,3.79915]
[1727259870444,3.79853,2632.6,2632.1,5.17710765]
[1727259870642,3.79869,2632.5,2632.1,5.17710765]
[1727259870848,3.79853,2632.6,2632.1,4.55835]
[1727259871022,7.59717,2632.6,2632.1,5.93630765]
[1727259871222,0.04560786,2632.5,2632.1,4.55835]
[1727259871562,0.04560786,2632.5,2632.2,3.7991]
[1727259872412,0.04560786,2632.5,2632.1,5.93627928]
[1727259872605,0.04560786,2632.5,2632.1,2.13712928]
[1727259872806,3.79877,2632.5,2632.1,0.7592]
[1727259873049,0.04556783,2632.4,2632.1,0.7592]
[1727259873231,0.72516783,2632.4,2631.9,0.7592]
[1727259873612,0.6796,2632.4,2631.9,0.7592]
[1727259873817,3.79911,2632.2,2631.9,0.7592]
[1727259874446,0.04542516,2632.1,2631.9,0.7592]
[1727259874853,0.04542516,2632.1,2631.9,5.93664763]
[1727259875152,0.04542516,2632.1,2632.0,0.9186101]
[1727259875350,7.59771,2632.4,2632.0,0.9186101]
[1727259875558,0.04542516,2632.1,2632.0,2.81443356]
[1727259875760,3.79882,2632.4,2632.0,3.73299434]
[1727259875912,7.59774,2632.4,2632.0,2.81443356]
[1727259876110,0.04556168,2632.3,2632.0,2.81443356]
[1727259876566,3.84452168,2632.3,2632.0,2.81443356]
[1727259877164,0.04556168,2632.3,2632.1,0.8073]
[1727259877370,0.04556168,2632.3,2632.1,4.60654]
[1727259877531,3.79875,2632.5,2632.1,4.60654]
[1727259877957,3.79853,2632.6,2632.1,8.40571]
[1727259878159,3.79838,2632.7,2632.2,3.79904]
[1727259878360,3.84416536,2632.6,2632.2,3.79904]
[1727259879068,3.84416536,2632.6,2632.2,6.61347356]
[1727259882376,3.84416536,2632.6,2632.2,3.79904]
[1727259882666,3.84416536,2632.6,2632.1,4.68251626]
[1727259884661,7.64279536,2632.6,2632.1,4.68251626]
[1727259885773,3.84416536,2632.6,2632.1,4.68251626]
[1727259886651,7.64279536,2632.6,2632.1,4.68251626]
[1727259889278,3.84416536,2632.6,2632.1,4.68251626]
[1727259889992,7.64280536,2632.6,2632.1,4.68251626]
[1727259890479,3.79867,2632.5,2632.1,0.88327626]
[1727259890648,3.79867,2632.5,2632.1,0.8073]
[1727259890849,0.04565815,2632.4,2632.1,0.8073]
[1727259891305,3.79903,2632.3,2632.1,0.8073]
[1727259891453,3.79903,2632.3,2631.9,0.8233]
[1727259891778,3.79903,2632.3,2631.9,4.6228]
[1727259892081,3.79903,2632.3,2631.9,6.00030854]
[1727259892490,3.79903,2632.3,2631.9,7.29943857]
[1727259892995,3.79903,2632.3,2631.7,10.2936735]
[1727259893158,3.79919,2632.2,2631.8,3.91831727]
[1727259893359,3.79919,2632.2,2631.8,3.0]
[1727259893560,0.04545338,2632.1,2631.8,3.0]
[1727259893793,3.79919,2632.2,2631.8,3.0]
[1727259893987,0.04545338,2632.1,2631.8,3.0]
[1727259894392,0.04545338,2632.1,2631.8,6.79966]
[1727259894761,3.79919,2632.2,2631.8,6.79966]
[1727259895128,0.04545338,2632.1,2631.8,6.79966]
[1727259895623,3.79919,2632.2,2631.8,6.79966]
[1727259896009,0.04545338,2632.1,2631.8,6.79966]
[1727259896217,3.79919,2632.2,2631.8,6.79966]
[1727259896525,0.04545338,2632.1,2631.8,6.79966]
[1727259896933,3.79919,2632.2,2631.8,6.79966]
[1727259897299,3.79919,2632.2,2631.9,1.29913003]
[1727259897833,0.72486916,2632.1,2631.7,8.91044003]
[1727259898133,0.6796,2632.1,2631.7,8.91044003]
[1727259898426,4.47886,2632.1,2631.7,8.91044003]
[1727259899336,4.47886,2632.1,2631.7,5.91044003]
[1727259900409,4.47886,2632.1,2631.7,6.53531381]
[1727259900614,3.7991,2632.2,2631.7,6.53531381]
[1727259900811,3.7991,2632.2,2631.9,1.29913003]
[1727259901233,0.04532186,2632.1,2631.9,1.29913003]
[1727259904074,4.47865,2632.3,2631.9,1.29913003]
[1727259904250,0.04516477,2632.0,2631.9,1.29913003]
[1727259904561,4.47865,2632.3,2631.9,1.29913003]
[1727259904754,0.04516477,2632.0,2631.9,1.29913003]
[1727259904953,4.47865,2632.3,2631.9,5.09865003]
[1727259905164,0.04516477,2632.0,2631.9,5.09865003]
[1727259905368,4.47865,2632.3,2631.9,5.09865003]
[1727259905861,0.04530129,2632.2,2631.9,5.09865003]
[1727259906064,4.47865,2632.3,2631.9,5.09865003]
[1727259906383,0.04523303,2632.1,2631.9,5.09865003]
[1727259906567,0.6796,2632.3,2631.9,5.09865003]
[1727259906736,0.04530129,2632.2,2631.9,8.89810003]
[1727259906936,3.84446129,2632.2,2631.7,5.91038003]
[1727259907245,0.04523303,2632.1,2631.7,5.91038003]
[1727259907445,3.79916,2632.2,2631.7,5.91038003]
[1727259907667,0.0451516,2632.0,2631.8,3.79966]
[1727259907869,3.7996,2631.9,2631.6,2.00127998]
[1727259908088,3.7996,2631.9,2631.5,4.46189755]
[1727259908290,0.04484945,2631.8,2631.5,4.46189755]
[1727259908583,0.04484945,2631.8,2631.5,3.83702377]
[1727259909085,5.09795003,2632.4,2631.5,3.83702377]
[1727259909086,1.07700623,2632.8,2632.4,3.79881]
[1727259909252,3.79781,2633.1,2632.4,5.92814003]
[1727259909453,0.6796,2633.1,2632.4,7.39543462]
[1727259909682,0.6796,2633.1,2632.4,8.84725682]
[1727259909903,0.6796,2633.1,2632.4,11.77129669]
[1727259910052,0.39736065,2633.2,2632.4,13.19080513]
[1727259910285,0.39736065,2633.2,2632.4,14.70435767]
[1727259910785,0.39736065,2633.2,2632.4,13.90953894]
[1727259911211,0.39736065,2633.2,2632.4,14.70391454]
[1727259911581,0.39736065,2633.2,2632.4,13.90953894]
[1727259911783,0.39736065,2633.2,2632.4,13.90941504]
[1727259912022,0.39736065,2633.2,2632.4,14.70400439]
[1727259912584,0.6796,2633.3,2632.4,13.90941504]
[1727259912985,0.6796,2633.3,2632.4,15.10164314]
[1727259913186,0.6796,2633.3,2632.4,13.90941504]
[1727259913730,0.6796,2633.3,2632.4,14.70372845]
[1727259916053,0.6796,2633.3,2632.4,13.90874981]
[1727259916555,0.6796,2633.3,2632.4,13.90694991]
[1727259918123,0.6796,2633.3,2632.4,14.70126332]
[1727259919453,0.6796,2633.5,2632.4,14.70126332]
[1727259919655,0.6796,2633.5,2632.4,13.90694991]
[1727259919811,0.6796,2633.5,2632.4,16.93059976]
[1727259920018,0.6796,2633.5,2632.4,14.7002658]
[1727259920356,0.6796,2633.8,2633.5,3.7972]
[1727259920555,0.6796,2633.8,2633.6,3.79703]
[1727259920756,0.03623523,2633.7,2633.6,3.79703]
[1727259921117,0.6796,2633.8,2633.6,3.79703]
[1727259921460,0.03612684,2633.7,2633.5,3.79714]
[1727259921682,0.6796,2633.8,2633.6,3.79708]
[1727259922575,0.6796,2633.8,2633.5,3.79714]
[1727259922935,0.03608916,2633.7,2633.5,3.79714]
[1727259923349,0.6796,2633.8,2633.5,3.79714]
[1727259923555,0.03587453,2633.6,2633.5,3.79714]
[1727259923773,0.6796,2633.8,2633.5,3.79714]
[1727259923979,0.03587453,2633.6,2633.5,3.79714]
[1727259924178,0.6796,2633.8,2633.5,3.79714]
[1727259924648,3.79645,2634.1,2633.5,3.79713]
[1727259924649,0.03623956,2633.7,2633.5,3.79713]
[1727259925033,0.6796,2633.9,2633.6,3.79706]
[1727259926460,0.03599082,2633.8,2633.6,3.79706]
[1727259928438,0.03599082,2633.8,2633.5,3.79721]
[1727259930652,0.03599082,2633.8,2633.4,3.79736]
[1727259930853,0.6796,2633.7,2633.1,3.55]
[1727259931166,0.6796,2633.4,2633.1,3.79779]
[1727259931575,0.03438878,2633.3,2633.1,3.79779]
[1727259932398,0.03438878,2633.3,2633.1,1.29792137]
[1727259932579,0.03438878,2633.3,2632.9,12.48593137]
[1727259932763,0.03438878,2633.3,2632.9,5.09593137]
[1727259932972,0.03438878,2633.3,2633.1,1.29792137]
[1727259933317,0.03438878,2633.3,2633.1,8.89339137]
[1727259933456,0.03438878,2633.3,2633.1,5.09563137]
[1727259934299,0.03438878,2633.3,2633.1,1.29792137]
[1727259934465,0.03438878,2633.3,2633.1,5.09571137]
[1727259935967,0.03438878,2633.3,2633.1,1.29792137]
[1727259936202,0.03438878,2633.3,2632.9,5.09599137]
[1727259936362,0.03438878,2633.3,2632.9,8.89401137]
[1727259936567,0.03438878,2633.3,2633.0,3.79788]
[1727259939174,0.03438878,2633.3,2632.9,5.09598137]
[1727259939370,0.03438878,2633.3,2633.1,1.29792137]
[1727259939707,0.03438878,2633.3,2633.1,5.09571137]
[1727259940809,0.03438878,2633.3,2633.2,3.8736085]
[1727259941114,0.03438878,2633.3,2633.2,4.58776]
[1727259941280,4.47655,2633.7,2633.2,4.66370534]
[1727259941486,8.27357,2633.7,2633.3,1.29792137]
[1727259941680,4.47655,2633.7,2633.3,1.29792137]
[1727259941882,0.0350223,2633.6,2633.3,1.29792137]
[1727259942388,3.8321223,2633.6,2633.3,1.29792137]
[1727259942969,0.0350223,2633.6,2633.3,1.29792137]
[1727259944316,0.0350223,2633.6,2633.3,5.09541137]
[1727259944484,0.0350223,2633.6,2633.2,0.86604534]
[1727259944485,0.0350223,2633.6,2633.5,1.29792137]
[1727259944684,0.39726712,2633.8,2633.5,1.29792137]
[1727259944991,0.03491403,2633.6,2633.5,5.09514137]
[1727259945192,3.79666,2633.9,2633.5,5.17107829]
[1727259945397,0.03490744,2633.6,2633.5,5.17107829]
[1727259945605,3.79666,2633.9,2633.5,5.17107829]
[1727259945810,0.03492154,2633.6,2633.5,5.17107829]
[1727259946285,3.79666,2633.9,2633.5,5.17107829]
[1727259946482,0.03492154,2633.6,2633.5,5.17107829]
[1727259946798,4.51412,2634.0,2633.5,5.17107829]
[1727259946995,0.03502315,2633.6,2633.5,5.17107829]
[1727259947220,3.79667,2633.9,2633.5,5.17107829]
[1727259947422,3.79667,2633.9,2633.5,5.09514137]
[1727259947423,0.03475849,2633.6,2633.5,5.09514137]
[1727259947597,3.79667,2633.9,2633.5,1.29792137]
[1727259948096,0.03493258,2633.8,2633.5,1.29792137]
[1727259948617,0.03493258,2633.8,2633.5,5.09512137]
[1727259950120,0.03493258,2633.8,2633.5,1.29792137]
[1727259950300,3.83179258,2633.8,2633.5,1.29792137]
[1727259951024,3.83179258,2633.8,2632.9,3.79808]
[1727259951025,4.47662,2633.7,2633.2,4.55647]
[1727259951386,0.03526184,2633.6,2633.1,5.09565137]
[1727259951598,3.83245184,2633.6,2633.1,1.29792137]
[1727259951800,3.79719,2633.6,2633.2,3.79759]
[1727259952048,0.0352233,2633.5,2633.2,3.79759]
[1727259952598,0.0352233,2633.5,2633.3,1.29792137]
[1727259954245,0.0352233,2633.5,2633.3,5.09543137]
[1727259954607,4.47661,2633.7,2633.3,5.09543137]
[1727259954812,0.03469415,2633.4,2633.3,5.09543137]
[1727259955022,4.47661,2633.7,2633.3,5.09543137]
[1727259955250,0.03512216,2633.4,2633.3,5.09543137]
[1727259955537,0.03525854,2633.6,2633.3,5.09543137]
[1727259955696,0.03473184,2633.4,2633.3,1.29792137]
[1727259955896,4.47661,2633.7,2633.3,1.29792137]
[1727259956130,0.03469415,2633.4,2633.3,1.29792137]
[1727259956436,4.47661,2633.7,2633.3,1.29792137]
[1727259956607,0.03465646,2633.4,2633.3,1.29792137]
[1727259956808,4.47661,2633.7,2633.3,1.29792137]
[1727259957024,0.03469415,2633.4,2633.3,1.29792137]
[1727259957533,3.79708,2633.6,2633.3,1.29792137]
[1727259957833,0.03512216,2633.4,2633.3,1.29792137]
[1727259957995,3.79708,2633.6,2633.3,1.29792137]
[1727259958200,0.03470735,2633.4,2633.3,1.29792137]
[1727259958392,3.79708,2633.6,2633.3,1.29792137]
[1727259958617,0.03474504,2633.4,2633.3,1.29792137]
[1727259958820,3.79708,2633.6,2633.3,1.29792137]
[1727259959026,0.03474504,2633.4,2633.3,1.29792137]
[1727259959234,3.79708,2633.6,2633.3,1.29792137]